{"text_format":"1","workbook":"xlsx","n_sheets":4,"sheets":["BasicMarkov","TimeDependent","Verify","Maple"],"not_rendered":{"charts":1,"images":3,"macros":1,"external_links":0,"defined_names":12,"comments":3,"pivot_tables":0},"unopened":[],"bounds":{"document_bytes":16777216,"sheet_cells":100000,"rows_first":2000,"rows_last":500,"rows_between":2000,"halvings":0,"cell_chars":16384,"cell_head_chars":4096},"cells_cut":0,"cells_raw":0,"read":"whole","date_system":"1900"}

{"sheet":"BasicMarkov","index":0,"n_rows":21,"n_cols":22,"rows_kept":21,"cut":false,"hidden":false,"merged":[]}
["Program for simple Markov analysis"]
[null,null,null,null,null,null,null,null,null,null,null,"Transition matrix"]
["Parameter","Value",null,"Steady state pr.",null,null,"Visit frequencies",null,null,null,"To 0",{"$f":"frmlegend(K3,Dim-1)","v":""},"","","","","","","","","",""]
["Dim",{"$f":"wsnrow(\"TransMat\",K:K)","v":1},null,"P0",{"$f":"MarkovPi(1,Dim,TMat)","v":{"$error":"#VALUE!"}},null,"v0",{"$f":"MarkovVi(1,Dim,TMat)","v":{"$error":"#VALUE!"}},null,"From 0",{"$f":"sumrow(1,K4:V4)","v":0}]
["Init",2,null,{"$f":"frmlegend(D4,Dim-1)","v":""},{"$f":"MarkovPi(2,Dim,TMat)","v":""},null,{"$f":"frmlegend(G4,Dim-1)","v":""},{"$f":"MarkovVi(2,Dim,TMat)","v":""},null,{"$f":"frmlegend(J4,Dim-1)","v":""},null,{"$f":"sumrow(2,K5:V5)","v":0}]
["SystFail",0,null,"",{"$f":"MarkovPi(3,Dim,TMat)","v":""},null,"",{"$f":"MarkovVi(3,Dim,TMat)","v":""},null,"",null,1,{"$f":"sumrow(3,K6:V6)","v":-1}]
[null,null,null,"",{"$f":"MarkovPi(4,Dim,TMat)","v":""},null,"",{"$f":"MarkovVi(4,Dim,TMat)","v":""},null,"",null,null,null,{"$f":"sumrow(4,K7:V7)","v":0}]
[null,null,null,"",{"$f":"MarkovPi(5,Dim,TMat)","v":""},null,"",{"$f":"MarkovVi(5,Dim,TMat)","v":""},null,"",null,null,null,null,{"$f":"sumrow(5,K8:V8)","v":0}]
[null,null,null,"",{"$f":"MarkovPi(6,Dim,TMat)","v":""},null,"",{"$f":"MarkovVi(6,Dim,TMat)","v":""},null,"",null,null,null,null,null,{"$f":"sumrow(6,K9:V9)","v":0}]
[null,null,null,"",{"$f":"MarkovPi(7,Dim,TMat)","v":""},null,"",{"$f":"MarkovVi(7,Dim,TMat)","v":""},null,"",null,null,null,null,null,null,{"$f":"sumrow(7,K10:V10)","v":0}]
[null,null,null,"",{"$f":"MarkovPi(8,Dim,TMat)","v":""},null,"",{"$f":"MarkovVi(8,Dim,TMat)","v":""},null,"",null,null,null,null,null,null,null,{"$f":"sumrow(8,K11:V11)","v":0}]
[null,null,null,"",{"$f":"MarkovPi(9,Dim,TMat)","v":""},null,"",{"$f":"MarkovVi(9,Dim,TMat)","v":""},null,"",null,null,null,null,null,null,null,null,{"$f":"sumrow(9,K12:V12)","v":0}]
[null,null,null,"",{"$f":"MarkovPi(10,Dim,TMat)","v":""},null,"",{"$f":"MarkovVi(10,Dim,TMat)","v":""},null,"",null,null,null,null,null,null,null,null,null,{"$f":"sumrow(10,K13:V13)","v":0}]
[null,null,null,"",{"$f":"MarkovPi(11,Dim,TMat)","v":""},null,"",{"$f":"MarkovVi(11,Dim,TMat)","v":""},null,"",null,null,null,null,null,null,null,null,null,null,{"$f":"sumrow(11,K14:V14)","v":0}]
[null,null,null,"",{"$f":"MarkovPi(12,Dim,TMat)","v":""},null,"",{"$f":"MarkovVi(12,Dim,TMat)","v":""},null,"",null,null,null,null,null,null,null,null,null,null,null,{"$f":"sumrow(12,K15:V15)","v":0}]
[]
[null,null,null,"MTTFS",{"$f":"getmarkovmttfs(Dim,Init,SystFeil,TMat)","v":{"$error":"#VALUE!"}}]
["Parameter","Numeric values"]
["names","of the parameters"]
[null,"(Give the cells "]
[null,"names)"]

{"sheet":"TimeDependent","index":1,"n_rows":16,"n_cols":10,"rows_kept":16,"cut":false,"hidden":false,"merged":[]}
["Parameter","Value",null,"i","Pi(t)","Failure",null,null,"t","PSTF(t)"]
["Dim",{"$f":"Dim","v":1},null,0,{"$f":"MarkovPit(1,tTimeDependent,Dim,Init,TMat)","v":{"$error":"#VALUE!"}},0,{"$f":"nz(E2)*(1-F2)","v":0},null,0,{"$f":"MarkovPit(StateToFollow+1,I2,Dim,Init,TMat)","v":{"$error":"#VALUE!"}}]
["Init",{"$f":"Init","v":2},null,{"$f":"D2+1","v":1},{"$f":"MarkovPit(2,tTimeDependent,Dim,Init,TMat)","v":""},1,{"$f":"nz(E3)*(1-F3)","v":0},null,{"$f":"I2+tTimeDependent/14","v":7.1428571428571432},{"$error":"#VALUE!"}]
["t",100,null,2,{"$f":"MarkovPit(3,tTimeDependent,Dim,Init,TMat)","v":""},1,0,null,14.285714285714286,{"$error":"#VALUE!"}]
["State to follow",0,null,3,{"$f":"MarkovPit(4,tTimeDependent,Dim,Init,TMat)","v":""},1,0,null,21.428571428571431,{"$error":"#VALUE!"}]
["nStep",200,null,4,{"$f":"MarkovPit(5,tTimeDependent,Dim,Init,TMat)","v":""},null,0,null,28.571428571428573,{"$error":"#VALUE!"}]
[null,null,null,5,{"$f":"MarkovPit(6,tTimeDependent,Dim,Init,TMat)","v":""},null,0,null,35.714285714285715,{"$error":"#VALUE!"}]
[null,null,null,6,{"$f":"MarkovPit(7,tTimeDependent,Dim,Init,TMat)","v":""},null,0,null,42.857142857142861,{"$error":"#VALUE!"}]
[null,null,null,7,{"$f":"MarkovPit(8,tTimeDependent,Dim,Init,TMat)","v":""},null,0,null,50.000000000000007,{"$error":"#VALUE!"}]
[null,null,null,8,{"$f":"MarkovPit(9,tTimeDependent,Dim,Init,TMat)","v":""},null,0,null,57.142857142857153,{"$error":"#VALUE!"}]
[null,null,null,9,{"$f":"MarkovPit(10,tTimeDependent,Dim,Init,TMat)","v":""},null,0,null,64.285714285714292,{"$error":"#VALUE!"}]
[null,null,null,10,{"$f":"MarkovPit(11,tTimeDependent,Dim,Init,TMat)","v":""},null,0,null,71.428571428571431,{"$error":"#VALUE!"}]
[null,null,null,11,{"$f":"MarkovPit(12,tTimeDependent,Dim,Init,TMat)","v":""},null,0,null,78.571428571428569,{"$error":"#VALUE!"}]
[null,null,null,"Pr(X(t) Î F)",null,null,{"$f":"SUM(G2:G13)","v":0},null,85.714285714285708,{"$error":"#VALUE!"}]
[null,null,null,"Average Pr(X(t) Î F)",null,null,8.1329408203600906E-6,null,92.857142857142847,{"$error":"#VALUE!"}]
[null,null,null,null,null,null,null,null,99.999999999999986,{"$error":"#VALUE!"}]

{"sheet":"Verify","index":2,"n_rows":27,"n_cols":13,"rows_kept":27,"cut":false,"hidden":false,"merged":[]}
[null,null,"Transition matrix"]
[null,"To 0",{"$f":"frmlegend(B2,Dim-1)","v":""},"","","","","","","","","",""]
["From 0",null,{"$f":"showformula(BasicMarkov!L4)","v":""},{"$f":"showformula(BasicMarkov!M4)","v":""},{"$f":"showformula(BasicMarkov!N4)","v":""},{"$f":"showformula(BasicMarkov!O4)","v":""},{"$f":"showformula(BasicMarkov!P4)","v":""},{"$f":"showformula(BasicMarkov!Q4)","v":""},{"$f":"showformula(BasicMarkov!R4)","v":""},{"$f":"showformula(BasicMarkov!S4)","v":""},{"$f":"showformula(BasicMarkov!T4)","v":""},{"$f":"showformula(BasicMarkov!U4)","v":""},{"$f":"showformula(BasicMarkov!V4)","v":""}]
[{"$f":"frmlegend(A3,Dim-1)","v":""},{"$f":"showformula(BasicMarkov!K5)","v":""},null,{"$f":"showformula(BasicMarkov!M5)","v":""},{"$f":"showformula(BasicMarkov!N5)","v":""},{"$f":"showformula(BasicMarkov!O5)","v":""},{"$f":"showformula(BasicMarkov!P5)","v":""},{"$f":"showformula(BasicMarkov!Q5)","v":""},{"$f":"showformula(BasicMarkov!R5)","v":""},{"$f":"showformula(BasicMarkov!S5)","v":""},{"$f":"showformula(BasicMarkov!T5)","v":""},{"$f":"showformula(BasicMarkov!U5)","v":""},{"$f":"showformula(BasicMarkov!V5)","v":""}]
["",{"$f":"showformula(BasicMarkov!K6)","v":""},{"$f":"showformula(BasicMarkov!L6)","v":"1"},null,{"$f":"showformula(BasicMarkov!N6)","v":""},{"$f":"showformula(BasicMarkov!O6)","v":""},{"$f":"showformula(BasicMarkov!P6)","v":""},{"$f":"showformula(BasicMarkov!Q6)","v":""},{"$f":"showformula(BasicMarkov!R6)","v":""},{"$f":"showformula(BasicMarkov!S6)","v":""},{"$f":"showformula(BasicMarkov!T6)","v":""},{"$f":"showformula(BasicMarkov!U6)","v":""},{"$f":"showformula(BasicMarkov!V6)","v":""}]
["",{"$f":"showformula(BasicMarkov!K7)","v":""},{"$f":"showformula(BasicMarkov!L7)","v":""},{"$f":"showformula(BasicMarkov!M7)","v":""},null,{"$f":"showformula(BasicMarkov!O7)","v":""},{"$f":"showformula(BasicMarkov!P7)","v":""},{"$f":"showformula(BasicMarkov!Q7)","v":""},{"$f":"showformula(BasicMarkov!R7)","v":""},{"$f":"showformula(BasicMarkov!S7)","v":""},{"$f":"showformula(BasicMarkov!T7)","v":""},{"$f":"showformula(BasicMarkov!U7)","v":""},{"$f":"showformula(BasicMarkov!V7)","v":""}]
["",{"$f":"showformula(BasicMarkov!K8)","v":""},{"$f":"showformula(BasicMarkov!L8)","v":""},{"$f":"showformula(BasicMarkov!M8)","v":""},{"$f":"showformula(BasicMarkov!N8)","v":""},null,{"$f":"showformula(BasicMarkov!P8)","v":""},{"$f":"showformula(BasicMarkov!Q8)","v":""},{"$f":"showformula(BasicMarkov!R8)","v":""},{"$f":"showformula(BasicMarkov!S8)","v":""},{"$f":"showformula(BasicMarkov!T8)","v":""},{"$f":"showformula(BasicMarkov!U8)","v":""},{"$f":"showformula(BasicMarkov!V8)","v":""}]
["",{"$f":"showformula(BasicMarkov!K9)","v":""},{"$f":"showformula(BasicMarkov!L9)","v":""},{"$f":"showformula(BasicMarkov!M9)","v":""},{"$f":"showformula(BasicMarkov!N9)","v":""},{"$f":"showformula(BasicMarkov!O9)","v":""},null,{"$f":"showformula(BasicMarkov!Q9)","v":""},{"$f":"showformula(BasicMarkov!R9)","v":""},{"$f":"showformula(BasicMarkov!S9)","v":""},{"$f":"showformula(BasicMarkov!T9)","v":""},{"$f":"showformula(BasicMarkov!U9)","v":""},{"$f":"showformula(BasicMarkov!V9)","v":""}]
["",{"$f":"showformula(BasicMarkov!K10)","v":""},{"$f":"showformula(BasicMarkov!L10)","v":""},{"$f":"showformula(BasicMarkov!M10)","v":""},{"$f":"showformula(BasicMarkov!N10)","v":""},{"$f":"showformula(BasicMarkov!O10)","v":""},{"$f":"showformula(BasicMarkov!P10)","v":""},null,{"$f":"showformula(BasicMarkov!R10)","v":""},{"$f":"showformula(BasicMarkov!S10)","v":""},{"$f":"showformula(BasicMarkov!T10)","v":""},{"$f":"showformula(BasicMarkov!U10)","v":""},{"$f":"showformula(BasicMarkov!V10)","v":""}]
["",{"$f":"showformula(BasicMarkov!K11)","v":""},{"$f":"showformula(BasicMarkov!L11)","v":""},{"$f":"showformula(BasicMarkov!M11)","v":""},{"$f":"showformula(BasicMarkov!N11)","v":""},{"$f":"showformula(BasicMarkov!O11)","v":""},{"$f":"showformula(BasicMarkov!P11)","v":""},{"$f":"showformula(BasicMarkov!Q11)","v":""},null,{"$f":"showformula(BasicMarkov!S11)","v":""},{"$f":"showformula(BasicMarkov!T11)","v":""},{"$f":"showformula(BasicMarkov!U11)","v":""},{"$f":"showformula(BasicMarkov!V11)","v":""}]
["",{"$f":"showformula(BasicMarkov!K12)","v":""},{"$f":"showformula(BasicMarkov!L12)","v":""},{"$f":"showformula(BasicMarkov!M12)","v":""},{"$f":"showformula(BasicMarkov!N12)","v":""},{"$f":"showformula(BasicMarkov!O12)","v":""},{"$f":"showformula(BasicMarkov!P12)","v":""},{"$f":"showformula(BasicMarkov!Q12)","v":""},{"$f":"showformula(BasicMarkov!R12)","v":""},null,{"$f":"showformula(BasicMarkov!T12)","v":""},{"$f":"showformula(BasicMarkov!U12)","v":""},{"$f":"showformula(BasicMarkov!V12)","v":""}]
["",{"$f":"showformula(BasicMarkov!K13)","v":""},{"$f":"showformula(BasicMarkov!L13)","v":""},{"$f":"showformula(BasicMarkov!M13)","v":""},{"$f":"showformula(BasicMarkov!N13)","v":""},{"$f":"showformula(BasicMarkov!O13)","v":""},{"$f":"showformula(BasicMarkov!P13)","v":""},{"$f":"showformula(BasicMarkov!Q13)","v":""},{"$f":"showformula(BasicMarkov!R13)","v":""},{"$f":"showformula(BasicMarkov!S13)","v":""},null,{"$f":"showformula(BasicMarkov!U13)","v":""},{"$f":"showformula(BasicMarkov!V13)","v":""}]
["",{"$f":"showformula(BasicMarkov!K14)","v":""},{"$f":"showformula(BasicMarkov!L14)","v":""},{"$f":"showformula(BasicMarkov!M14)","v":""},{"$f":"showformula(BasicMarkov!N14)","v":""},{"$f":"showformula(BasicMarkov!O14)","v":""},{"$f":"showformula(BasicMarkov!P14)","v":""},{"$f":"showformula(BasicMarkov!Q14)","v":""},{"$f":"showformula(BasicMarkov!R14)","v":""},{"$f":"showformula(BasicMarkov!S14)","v":""},{"$f":"showformula(BasicMarkov!T14)","v":""},null,{"$f":"showformula(BasicMarkov!V14)","v":""}]
["",{"$f":"showformula(BasicMarkov!K15)","v":""},{"$f":"showformula(BasicMarkov!L15)","v":""},{"$f":"showformula(BasicMarkov!M15)","v":""},{"$f":"showformula(BasicMarkov!N15)","v":""},{"$f":"showformula(BasicMarkov!O15)","v":""},{"$f":"showformula(BasicMarkov!P15)","v":""},{"$f":"showformula(BasicMarkov!Q15)","v":""},{"$f":"showformula(BasicMarkov!R15)","v":""},{"$f":"showformula(BasicMarkov!S15)","v":""},{"$f":"showformula(BasicMarkov!T15)","v":""},{"$f":"showformula(BasicMarkov!U15)","v":""}]
[]
["Parameter","Formula","Name"]
[{"$f":"BasicMarkov!#REF!","v":{"$error":"#REF!"}},{"$f":"showformula(BasicMarkov!#REF!)","v":{"$error":"#VALUE!"}},{"$f":"showname(BasicMarkov!#REF!)","v":{"$error":"#VALUE!"}}]
[{"$f":"BasicMarkov!#REF!","v":{"$error":"#REF!"}},{"$f":"showformula(BasicMarkov!#REF!)","v":{"$error":"#VALUE!"}},{"$f":"showname(BasicMarkov!#REF!)","v":{"$error":"#VALUE!"}}]
[{"$f":"BasicMarkov!#REF!","v":{"$error":"#REF!"}},{"$f":"showformula(BasicMarkov!#REF!)","v":{"$error":"#VALUE!"}},{"$f":"showname(BasicMarkov!#REF!)","v":{"$error":"#VALUE!"}}]
[{"$f":"BasicMarkov!#REF!","v":{"$error":"#REF!"}},{"$f":"showformula(BasicMarkov!#REF!)","v":{"$error":"#VALUE!"}},{"$f":"showname(BasicMarkov!#REF!)","v":{"$error":"#VALUE!"}}]
[{"$f":"BasicMarkov!A11","v":0},{"$f":"showformula(BasicMarkov!B11)","v":""},{"$f":"showname(BasicMarkov!B11)","v":""}]
[{"$f":"BasicMarkov!A12","v":0},{"$f":"showformula(BasicMarkov!B12)","v":""},{"$f":"showname(BasicMarkov!B12)","v":""}]
[{"$f":"BasicMarkov!A13","v":0},{"$f":"showformula(BasicMarkov!B13)","v":""},{"$f":"showname(BasicMarkov!B13)","v":""}]
[{"$f":"BasicMarkov!A14","v":0},{"$f":"showformula(BasicMarkov!B14)","v":""},{"$f":"showname(BasicMarkov!B14)","v":""}]
[{"$f":"BasicMarkov!A15","v":0},{"$f":"showformula(BasicMarkov!B15)","v":""},{"$f":"showname(BasicMarkov!B15)","v":""}]
[{"$f":"BasicMarkov!A16","v":0},{"$f":"showformula(BasicMarkov!B16)","v":""},{"$f":"showname(BasicMarkov!B16)","v":""}]
[{"$f":"BasicMarkov!A17","v":0},{"$f":"showformula(BasicMarkov!B17)","v":""},{"$f":"showname(BasicMarkov!B17)","v":""}]

{"sheet":"Maple","index":3,"n_rows":2,"n_cols":2,"rows_kept":2,"cut":false,"hidden":false,"merged":[]}
["Parameter","Value"]
["Maple exe-file","C:\\Program Files\\Maple 13\\bin.win\\cwmaple.exe"]